bitfinex-derivatives/quotes_SOLF0:USTF0_20250808
["timestamp","ask_amount","ask_price","bid_price","bid_amount"]
[1754626821665,6.49971782,174.42,174.39,5.7328]
[1754626821962,6.49971782,174.42,174.4,3.08]
[1754626822563,3.25971782,174.42,174.4,3.08]
[1754626822759,2.08346488,174.41,174.4,3.08]
[1754626825365,5.32346488,174.41,174.4,3.08]
[1754626826166,2.08346488,174.41,174.4,3.08]
[1754626827765,11.05586488,174.41,174.4,3.08]
[1754626828369,5.32346488,174.41,174.4,3.08]
[1754626828968,5.32346488,174.41,174.36,152.2372605]
[1754626829167,2.08346488,174.39,174.36,150.15379562]
[1754626829368,5.32346488,174.39,174.36,150.15379562]
[1754626829666,5.32346488,174.39,174.37,3.08]
[1754626830566,3.24,174.39,174.37,3.08]
[1754626830764,2.08346488,174.38,174.37,3.08]
[1754626831572,2.08346488,174.38,174.37,8.8137]
[1754626834271,3.05,174.4,174.38,5.7334]
[1754626834473,3.05,174.4,174.39,3.11]
[1754626835573,5.13346488,174.4,174.39,3.11]
[1754626836167,10.86616488,174.4,174.39,3.11]
[1754626839079,8.7831,174.39,174.37,3.11]
[1754626839278,2.08346488,174.38,174.37,3.11]
[1754626840978,3.05,174.37,174.36,3.11]
[1754626841181,3.05,174.37,174.31,33.0]
[1754626841480,104.84,174.46,174.33,3.11]
[1754626841481,2.08346488,174.34,174.33,3.11]
[1754626844179,2.08346488,174.34,174.33,8.845]
[1754626844381,2.08346488,174.34,174.33,3.11]
[1754626845477,3.05,174.35,174.33,8.845]
[1754626845677,3.05,174.35,174.34,3.11]
[1754626846380,8.7842,174.36,174.34,8.8447]
[1754626846680,8.7842,174.36,174.35,3.11]
[1754626846880,10.86766488,174.36,174.35,3.11]
[1754626849877,5.7344,174.35,174.33,5.7349]
[1754626850078,2.08346488,174.34,174.33,5.7349]
[1754626850383,2.08346488,174.34,174.33,8.8449]
[1754626851483,5.13346488,174.34,174.33,8.8449]
[1754626852683,2.08346488,174.34,174.33,8.8449]
[1754626856986,5.13346488,174.34,174.33,8.8449]
[1754626858591,2.08346488,174.34,174.33,8.8449]
[1754626859291,3.05,174.34,174.33,3.11]
[1754626859490,5.13346488,174.34,174.33,3.11]
[1754626860796,10.86816488,174.34,174.33,3.11]
[1754626861694,5.13346488,174.34,174.33,3.11]
[1754626862896,10.86816488,174.34,174.33,3.11]
[1754626863790,5.13346488,174.34,174.33,8.995]
[1754626866292,2.08346488,174.34,174.33,8.995]
[1754626867195,3.03,174.37,174.33,3.26]
[1754626867395,8.7639,174.37,174.33,3.26]
[1754626867591,2.08346488,174.35,174.33,3.26]
[1754626867799,2.08346488,174.35,174.34,8.9947]
[1754626872910,5.11346488,174.35,174.34,8.9947]
[1754626874108,2.08346488,174.35,174.34,8.9947]
[1754626880214,5.11346488,174.35,174.34,8.9947]
[1754626880414,5.11346488,174.35,174.34,3.26]
[1754626884911,5.11346488,174.35,174.33,5.7349]
[1754626885117,3.03,174.34,174.33,8.9949]
[1754626885616,5.11346488,174.35,174.33,8.9949]
[1754626885820,5.11346488,174.35,174.34,3.26]
[1754626886917,5.11346488,174.35,174.32,8.9952]
[1754626887116,5.11346488,174.33,174.29,144.74905799]
[1754626887308,2.08346488,174.31,174.29,144.74905799]
[1754626887620,2.08346488,174.31,174.3,3.26]
[1754626887817,2.08346488,174.31,174.3,5.736]
[1754626888018,2.08346488,174.31,174.3,8.996]
[1754626890218,2.08346488,174.32,174.3,3.26]
[1754626890715,2.08346488,174.32,174.31,5.7357]
[1754626891019,2.08346488,174.33,174.31,3.26]
[1754626891519,2.08346488,174.33,174.32,8.9954]
[1754626892421,3.06,174.32,174.31,5.7356]
[1754626893018,3.06,174.32,174.31,8.8956]
[1754626895117,5.14346488,174.32,174.31,8.8956]
[1754626895719,2.08346488,174.32,174.31,8.8956]
[1754626895923,3.06,174.33,174.32,5.7354]
[1754626896220,5.14346488,174.33,174.32,8.8954]
[1754626896925,3.06,174.43,174.34,3.16]
[1754626897118,3.06,174.37,174.34,3.16]
[1754626897422,2.08346488,174.35,174.34,3.16]
[1754626897617,2.08346488,174.35,174.34,8.8944]
[1754626897828,5.14346488,174.35,174.34,8.8944]
[1754626898026,2.08346488,174.35,174.34,8.8944]
[1754626898414,2.08346488,174.35,174.33,3.16]
[1754626898717,5.14346488,174.34,174.33,3.16]
[1754626900522,2.08346488,174.34,174.31,8.8956]
[1754626900828,5.14346488,174.32,174.31,3.16]
[1754626901326,10.87886488,174.32,174.31,3.16]
[1754626901528,5.14346488,174.32,174.31,3.16]
[1754626902729,10.87886488,174.32,174.31,3.16]
[1754626903624,10.87886488,174.32,174.29,153.64525799]
[1754626903828,2.08346488,174.3,174.29,153.64525799]
[1754626904230,2.08346488,174.3,174.29,150.48525799]
[1754626904928,2.08346488,174.3,174.29,153.64525799]
[1754626909233,2.08346488,174.3,174.29,150.48525799]
[1754626909435,3.06,174.31,174.3,3.16]
[1754626909637,5.14346488,174.31,174.3,3.16]
[1754626909835,5.14346488,174.31,174.29,5.7362]
[1754626909836,8.7961,174.3,174.26,107.86]
[1754626910140,2.08346488,174.28,174.27,3.16]
[1754626910534,2.08346488,174.28,174.27,8.897]
[1754626911238,2.08346488,174.29,174.28,8.8964]
[1754626911437,2.08346488,174.29,174.28,5.7364]
[1754626911940,2.08346488,174.29,174.28,8.8964]
[1754626913534,2.08346488,174.31,174.28,3.16]
[1754626914040,2.08346488,174.34,174.33,8.8951]
[1754626914443,3.06,174.39,174.33,3.16]
[1754626914645,5.14346488,174.39,174.36,3.16]
[1754626914944,3.09714955,174.38,174.36,3.16]
[1754626915244,3.09714955,174.38,174.37,5.7335]
[1754626915444,3.09714955,174.38,174.37,8.8935]
[1754626916345,3.09714955,174.38,174.33,3.16]
[1754626916643,3.06,174.35,174.33,3.16]
[1754626917146,3.06,174.36,174.35,5.7343]
[1754626917745,3.06,174.36,174.35,8.8943]
[1754626918042,9.02753828,174.38,174.35,8.8943]
[1754626918248,8.83064955,174.38,174.36,8.894]
[1754626918441,8.83064955,174.38,174.37,3.16]
[1754626920543,3.09714955,174.38,174.37,3.16]
[1754626920749,0.03714955,174.38,174.37,3.16]
[1754626921449,0.03714955,174.38,174.37,8.8937]
[1754626921651,0.00019753,174.38,174.37,8.8937]
[1754626922651,3.13019753,174.38,174.37,8.8937]
[1754626923044,0.00019753,174.38,174.37,5.7337]
[1754626926447,6.38688873,174.47,174.44,5.7314]
[1754626926652,3.13,174.46,174.4,107.91688873]
[1754626926946,3.13,174.46,174.41,3.12]
[1754626927151,3.13,174.45,174.44,3.12]
[1754626929453,3.13,174.45,174.43,5.76949805]
[1754626929752,3.13,174.45,174.43,3.15789805]
[1754626929954,3.13,174.44,174.43,3.15789805]
[1754626930455,8.8608,174.46,174.43,5.76969805]
[1754626930647,3.13,174.45,174.43,5.76969805]
[1754626931150,5.7308,174.46,174.44,3.12]
[1754626931950,3.13,174.45,174.44,3.12]
[1754626932954,8.8608,174.46,174.45,3.12]
[1754626933352,5.7306,174.47,174.45,3.12]
[1754626933545,8.8606,174.47,174.45,3.12]
[1754626933750,3.13,174.47,174.46,3.12]
[1754626934258,3.13,174.47,174.43,5.76959805]
[1754626934457,3.13,174.47,174.45,3.12]
[1754626934656,3.13,174.46,174.45,3.12]
[1754626937857,5.7304,174.47,174.45,3.12]
[1754626938156,3.13,174.47,174.45,3.12]
[1754626938356,6.38688873,174.48,174.45,3.12]
[1754626938557,3.13,174.49,174.45,3.12]
[1754626939060,3.13,174.49,174.47,5.7304]
[1754626939357,3.13,174.49,174.48,3.12]
[1754626940154,8.8598,174.49,174.48,3.12]
[1754626943866,3.13,174.49,174.48,3.12]
[1754626946965,5.7296,174.5,174.48,3.12]
[1754626947165,8.8593,174.51,174.48,3.12]
[1754626947670,8.8593,174.51,174.49,3.12]
[1754626949163,406.57408189,174.54,174.5,3.12]
[1754626949365,3.13,174.53,174.5,3.12]
[1754626949872,3.13,174.53,174.51,3.12]
[1754626951671,5.7286,174.53,174.51,3.12]
[1754626951866,3.11,174.52,174.51,3.12]
[1754626952471,8.8388,174.52,174.51,3.12]
[1754626952771,3.11,174.52,174.51,3.12]
[1754626953571,5.7284,174.54,174.5,5.7293]
[1754626953872,3.11,174.53,174.51,3.14]
[1754626954365,3.11,174.53,174.5,5.7293]
[1754626954366,3.11,174.52,174.5,3.14]
[1754626954573,3.11,174.51,174.5,0.04019115]
[1754626955073,3.11,174.51,174.5,3.18019115]
[1754626955267,3.25688873,174.55,174.51,3.14]
[1754626955666,3.11,174.54,174.51,3.14]
[1754626956169,5.7287,174.53,174.51,3.14]
[1754626956477,3.11,174.52,174.51,3.14]
[1754626957272,5.7287,174.53,174.51,3.14]
[1754626958575,5.7287,174.53,174.5,5.76949115]
[1754626958877,5.7283,174.54,174.51,5.7291]
[1754626959072,5.7283,174.54,174.52,3.14]
[1754626959573,8.8383,174.54,174.52,3.14]
[1754626959775,8.8385,174.53,174.52,3.14]
[1754626960880,5.7283,174.54,174.5,5.76969115]
[1754626961180,3.11,174.53,174.51,3.14]
[1754626961368,5.7283,174.54,174.51,3.14]
[1754626961573,6.36688873,174.55,174.53,3.14]
[1754626961973,12.09488873,174.55,174.53,3.14]
[1754626962281,4.25433778,174.57,174.53,3.14]
[1754626962480,4.10744905,174.57,174.53,3.14]
[1754626962675,2.07967143,174.56,174.53,5.7283]
[1754626962975,2.07967143,174.56,174.54,3.14]
[1754626963175,8.8374,174.57,174.54,5.7279]
[1754626963379,2.07967143,174.56,174.55,3.14]
[1754626963675,7.80717143,174.56,174.55,3.14]
[1754626964681,5.7275,174.56,174.55,3.14]
[1754626964980,8.8375,174.56,174.55,3.14]
[1754626976186,8.8373,174.57,174.56,3.14]
[1754626976488,3.11,174.59,174.56,3.14]
[1754626976684,6.35970014,174.6,174.56,3.14]
[1754626976881,3.24970014,174.6,174.59,3.14]
[1754626977392,6.35970014,174.6,174.59,3.14]
[1754626977591,12.08590014,174.6,174.59,3.14]
[1754626978590,5.7262,174.6,174.59,3.14]
[1754626978793,8.8356,174.62,174.59,3.14]
[1754626979393,5.7256,174.62,174.59,5.7263]
[1754626979692,12.08500014,174.63,174.6,3.14]
[1754626979894,12.08500014,174.63,174.6,5.7262]
[1754626980095,5.7255,174.62,174.61,3.14]
[1754626980895,8.8355,174.62,174.61,3.14]
[1754626981986,3.11,174.62,174.58,0.03834495]
[1754626982295,3.03,174.62,174.59,3.03]
[1754626982599,8.7561,174.61,174.59,3.03]
[1754626982791,3.03,174.6,174.58,0.03834495]
[1754626982991,3.24970014,174.59,174.58,0.03834495]
[1754626983194,6.27970014,174.59,174.58,0.03834495]
[1754626983600,6.27970014,174.59,174.58,3.06834495]
[1754626984199,12.00620014,174.59,174.58,3.06834495]
[1754626984497,12.00620014,174.59,174.58,0.03834495]
[1754626987802,12.00620014,174.59,174.58,3.06834495]
[1754626991000,8.97620014,174.59,174.58,3.06834495]
[1754626991307,3.24970014,174.59,174.58,3.06834495]
[1754626991502,5.7264,174.6,174.58,3.06834495]
[1754626993606,5.7264,174.6,174.58,8.79514495]
[1754626993800,5.7261,174.61,174.59,3.03]
[1754626994103,6.27970014,174.61,174.59,3.03]
[1754626994512,5.7262,174.6,174.59,3.03]
[1754626994696,8.7562,174.6,174.59,3.03]
[1754626998410,5.7262,174.6,174.59,3.03]
[1754627000807,3.03,174.62,174.59,3.03]
[1754627001011,3.03,174.62,174.61,5.7259]
[1754627001311,6.27970014,174.65,174.62,3.03]
[1754627001711,3.03,174.65,174.62,3.03]
[1754627001912,5.7246,174.65,174.62,3.03]
[1754627002210,3.03,174.65,174.63,3.03]
[1754627002404,12.00460014,174.64,174.63,3.03]
[1754627002600,8.97460014,174.64,174.63,3.03]
[1754627002814,3.24970014,174.66,174.63,3.03]
[1754627003014,8.7547,174.65,174.63,3.03]
[1754627003209,3.24970014,174.66,174.63,3.03]
[1754627003410,8.7549,174.65,174.63,3.03]
[1754627003911,3.03,174.65,174.63,3.03]
[1754627004214,5.7249,174.64,174.63,3.03]
[1754627004512,8.7549,174.64,174.63,3.03]
[1754627005412,5.7252,174.63,174.62,3.06681959]
[1754627005611,8.7552,174.63,174.62,0.03681959]
[1754627007610,5.7262,174.6,174.59,3.03]
[1754627007814,8.97590014,174.6,174.59,3.03]
[1754627008113,12.00590014,174.6,174.59,3.03]
[1754627008314,3.24970014,174.6,174.55,3.03]
[1754627008617,3.03,174.59,174.55,3.03]
[1754627008913,5.7266,174.59,174.55,5.7276]
[1754627009211,5.7266,174.59,174.56,3.03]
[1754627010610,12.00600014,174.6,174.56,5.7274]
[1754627010812,8.97600014,174.6,174.57,3.03]
[1754627011318,5.7265,174.59,174.57,3.03]
[1754627013322,5.7269,174.58,174.57,3.03]
[1754627015222,9.0069,174.58,174.57,3.03]
[1754627015626,5.7269,174.58,174.57,3.03]
[1754627018526,3.28,174.57,174.51,3.15]
[1754627018722,3.24970014,174.54,174.51,3.15]
[1754627018922,6.52970014,174.54,174.51,3.15]
[1754627019326,5.7285,174.53,174.51,3.15]
[1754627019520,9.0085,174.53,174.51,3.15]
[1754627020225,3.28,174.53,174.51,3.15]
[1754627020423,3.24970014,174.54,174.51,3.15]
[1754627020623,6.52970014,174.54,174.51,3.15]
[1754627021128,5.7285,174.53,174.51,3.15]
[1754627022026,12.25810014,174.54,174.51,3.15]
[1754627023324,12.25810014,174.54,174.51,8.8791]
[1754627023525,12.25810014,174.54,174.51,5.7291]
[1754627023727,12.25810014,174.54,174.52,3.15]
[1754627025530,9.0085,174.53,174.51,3.15]
[1754627027233,9.0085,174.53,174.51,8.8791]
[1754627027529,9.0085,174.53,174.52,3.15]
[1754627028431,3.24970014,174.54,174.52,3.15]
[1754627028432,8.97800014,174.54,174.52,3.15]
[1754627030033,3.24970014,174.54,174.52,3.15]
[1754627033137,3.24970014,174.54,174.53,3.15]
[1754627033337,6.52970014,174.54,174.53,3.15]
[1754627033637,12.25790014,174.54,174.53,3.15]
[1754627035544,9.04558174,174.55,174.53,3.15]
[1754627035738,12.29528188,174.55,174.53,3.15]
[1754627035939,6.56728188,174.55,174.53,3.15]
[1754627036139,12.29528188,174.55,174.53,3.15]
[1754627036643,2.08051054,174.54,174.53,3.15]
[1754627037138,11.08871054,174.54,174.53,3.15]
[1754627039741,5.36051054,174.54,174.48,142.41652007]
[1754627040048,2.08051054,174.49,174.48,140.33600953]
[1754627040341,5.7286,174.53,174.49,8.8795]
[1754627040543,2.08051054,174.51,174.5,3.15]
[1754627040842,2.08051054,174.54,174.52,5.7288]
[1754627041148,2.08051054,174.55,174.52,3.15]
[1754627041647,2.08051054,174.55,174.54,3.02]
[1754627042647,10.85831054,174.55,174.54,3.02]
[1754627044454,5.13051054,174.55,174.54,3.02]
[1754627044647,3.05,174.55,174.54,3.02]
[1754627045954,3.05,174.56,174.54,3.02]
[1754627047351,8.7776,174.56,174.54,3.02]
[1754627048547,5.7276,174.56,174.54,3.02]
[1754627048747,8.97751601,174.57,174.5,3.02]
[1754627049651,8.97751601,174.57,174.53,5.7282]
[1754627049855,12.02751601,174.57,174.54,3.02]
[1754627050146,3.25011601,174.59,174.52,3.02]
[1754627050346,3.05,174.59,174.57,3.02]
[1754627050546,3.25011601,174.61,174.57,3.02]
[1754627050750,3.05,174.6,174.58,5.7268]
[1754627051051,3.05,174.6,174.59,3.02]
[1754627052253,8.7762,174.6,174.59,3.02]
[1754627052456,3.05,174.6,174.59,3.02]
[1754627052954,3.05,174.62,174.59,3.02]
[1754627053655,3.05,174.62,174.61,3.02]
[1754627054356,8.7755,174.62,174.61,3.02]
[1754627054654,3.05,174.64,174.61,3.02]
[1754627054956,3.25011601,174.65,174.57,3.25011601]
[1754627055152,3.05,174.61,174.57,3.25011601]
[1754627055548,3.05,174.61,174.59,5.7263]
[1754627055756,3.05,174.62,174.6,3.02]
[1754627056161,3.05,174.62,174.6,8.7462]
[1754627056347,5.7254,174.63,174.6,5.7262]
[1754627056548,8.7754,174.63,174.62,3.02]
[1754627057858,3.05,174.63,174.62,3.02]
[1754627058057,8.775,174.64,174.62,3.02]
[1754627058359,5.7252,174.63,174.62,3.02]
[1754627058661,8.7752,174.63,174.62,3.02]
[1754627058850,5.7252,174.63,174.62,3.02]
[1754627059655,8.7752,174.63,174.62,3.02]
[1754627060754,5.7252,174.63,174.62,3.02]
[1754627061258,8.7752,174.63,174.62,3.02]
[1754627062560,5.7252,174.63,174.62,3.02]
[1754627062859,8.775,174.64,174.62,3.02]
[1754627066066,5.7252,174.63,174.62,3.02]
[1754627066266,3.05,174.63,174.62,3.02]
[1754627066560,3.05,174.64,174.61,3.02]
[1754627066760,5.12780819,174.64,174.61,3.02]
[1754627066958,3.05,174.63,174.61,3.02]
[1754627067164,7.80280819,174.64,174.61,3.02]
[1754627067357,10.85280819,174.64,174.61,8.7458]
[1754627067557,10.85280819,174.64,174.62,3.02]
[1754627068772,5.7252,174.63,174.62,3.02]
[1754627069168,3.05,174.64,174.62,3.02]
[1754627070376,8.775,174.64,174.62,3.02]
[1754627071277,3.05,174.63,174.62,3.02]
[1754627071774,5.725,174.64,174.62,3.02]
[1754627071973,8.925,174.64,174.63,3.13]
[1754627075877,3.2,174.64,174.63,3.13]
[1754627076179,5.27780819,174.64,174.63,3.13]
[1754627076482,11.00270819,174.64,174.63,3.13]
[1754627077882,2.07780819,174.64,174.63,3.13]
[1754627078084,3.2,174.65,174.63,3.13]
[1754627079182,3.2,174.65,174.63,8.8552]
[1754627079382,3.2,174.65,174.64,3.13]
[1754627080977,5.27780819,174.65,174.64,3.13]
[1754627081783,2.07780819,174.65,174.64,3.13]
[1754627082184,11.00240819,174.65,174.64,3.13]
[1754627085685,5.725,174.64,174.6,7.80380819]
[1754627085886,2.07780819,174.62,174.59,3.13]
[1754627086086,3.2,174.61,174.59,3.13]
[1754627086587,5.27780819,174.62,174.59,3.13]
[1754627086789,3.2,174.62,174.6,5.7262]
[1754627086990,3.2,174.62,174.61,3.13]
[1754627089591,8.9255,174.62,174.61,3.13]
[1754627089791,3.2,174.62,174.6,3.13]
[1754627090294,5.7259,174.61,174.6,3.13]
[1754627090591,11.00370819,174.61,174.6,3.13]
[1754627094296,5.27780819,174.61,174.6,3.13]
[1754627094496,3.2,174.62,174.6,3.13]
[1754627094692,5.27780819,174.62,174.6,3.13]
[1754627096292,11.00340819,174.62,174.6,3.13]
[1754627096898,5.27780819,174.62,174.6,3.13]
[1754627097698,11.00330819,174.62,174.6,3.13]
[1754627098094,11.00330819,174.62,174.59,5.7264]
[1754627098299,11.00330819,174.62,174.61,3.13]
[1754627098698,11.00330819,174.62,174.58,5.7267]
[1754627098901,3.2,174.6,174.59,3.13]
[1754627099800,3.2,174.6,174.59,8.8565]
[1754627100006,2.07780819,174.61,174.6,3.13]
[1754627100407,2.07780819,174.61,174.6,8.8562]
[1754627101804,2.07780819,174.61,174.6,3.13]
[1754627102210,8.9256,174.62,174.6,3.13]
[1754627102409,2.07780819,174.61,174.6,3.13]
[1754627103009,2.07780819,174.61,174.6,8.8562]
[1754627105212,5.35780819,174.63,174.62,3.28]
[1754627105708,2.07780819,174.63,174.62,9.0055]
[1754627106704,9.0047,174.65,174.62,9.0055]
[1754627106904,5.35780819,174.64,174.63,3.28]
[1754627108215,2.07780819,174.64,174.62,5.7255]
[1754627108413,3.28,174.63,174.62,5.7255]
[1754627109109,5.35780819,174.63,174.62,9.0055]
[1754627109316,2.07780819,174.64,174.63,3.28]
[1754627109814,2.07780819,174.64,174.63,9.0052]
[1754627110115,2.07780819,174.64,174.63,3.28]
[1754627110714,2.07780819,174.64,174.63,9.0052]
[1754627111617,5.35780819,174.64,174.63,3.28]
[1754627112315,3.28,174.64,174.63,3.28]
[1754627112617,2.07780819,174.64,174.63,3.28]
[1754627113012,5.35780819,174.64,174.63,3.28]
[1754627113220,11.08270819,174.64,174.63,3.28]
[1754627113919,5.35780819,174.64,174.63,3.28]
[1754627114120,3.28,174.64,174.63,3.28]
[1754627114320,5.35780819,174.64,174.63,3.28]
[1754627116319,11.08270819,174.64,174.63,3.28]
[1754627117619,5.35780819,174.64,174.63,3.28]
[1754627120921,2.07780819,174.64,174.63,3.28]
[1754627122317,2.07780819,174.64,174.63,9.0052]
[1754627122523,2.07780819,174.65,174.63,3.28]
[1754627124424,5.35780819,174.65,174.63,3.28]
[1754627124726,5.35780819,174.65,174.63,9.0052]
[1754627124923,2.07780819,174.67,174.63,5.35780819]
[1754627125126,5.35780819,174.68,174.64,2.07780819]
[1754627125321,5.35780819,174.68,174.65,3.28]
[1754627126728,2.07780819,174.67,174.66,5.7242]
[1754627126928,2.07780819,174.67,174.66,9.0042]
[1754627131027,2.07780819,174.69,174.68,9.0036]
[1754627132030,3.28,174.7,174.69,5.7232]
[1754627132229,5.08780819,174.71,174.69,3.31]
[1754627132429,104.3,174.74,174.67,2.07780819]
[1754627132634,5.08780819,174.73,174.72,3.31]
[1754627132834,3.01,174.73,174.72,3.31]
[1754627133020,5.08780819,174.74,174.73,9.0319]
[1754627133524,105.27624975,174.78,174.73,3.31]
[1754627133730,2.07780819,174.75,174.72,3.31]
[1754627134027,3.01,174.74,174.73,3.31]
[1754627135025,2.07780819,174.74,174.71,9.0325]
[1754627135221,3.01,174.71,174.65,2.07780819]
[1754627135426,5.08780819,174.69,174.66,3.31]
[1754627136033,5.08780819,174.68,174.66,3.31]
[1754627136733,3.01,174.68,174.66,3.31]
[1754627136931,3.24503763,174.7,174.66,3.31]
[1754627137230,8.7334,174.69,174.67,5.7239]
[1754627137432,8.7334,174.69,174.68,3.31]
[1754627138835,3.01,174.69,174.68,3.31]
[1754627140136,3.01,174.7,174.69,3.31]
[1754627140535,3.01,174.69,174.68,3.31]
[1754627142132,3.01,174.68,174.67,3.31]
[1754627142437,3.01,174.68,174.62,3.31]
[1754627142741,3.01,174.66,174.65,9.0344]
[1754627144243,6.25503763,174.67,174.66,3.31]
[1754627146140,3.01,174.66,174.63,5.7251]
[1754627146444,3.01,174.66,174.65,3.31]
[1754627146946,3.01,174.65,174.64,3.31]
[1754627147243,3.01,174.64,174.61,139.10940037]
[1754627147442,3.01,174.63,174.62,3.31]
[1754627149547,11.97973763,174.65,174.62,3.31]
[1754627149945,8.96973763,174.65,174.62,3.31]
[1754627150639,5.7249,174.64,174.61,5.7257]
[1754627150840,3.01,174.63,174.61,5.7257]
[1754627151239,3.01,174.63,174.62,3.31]
[1754627152349,3.01,174.64,174.62,3.31]
[1754627152948,3.01,174.64,174.63,3.31]
[1754627156058,3.24503763,174.65,174.63,3.31]
[1754627156458,6.25503763,174.65,174.63,3.31]
[1754627156953,3.24503763,174.65,174.64,3.31]
[1754627157159,11.97903763,174.67,174.64,3.31]
[1754627157861,8.734,174.67,174.64,3.31]
[1754627158060,3.24503763,174.66,174.64,3.31]
[1754627158258,3.24503763,174.66,174.65,3.31]
[1754627158458,6.25503763,174.66,174.65,3.31]
[1754627159964,11.97923763,174.66,174.65,3.31]
[1754627160262,3.01,174.65,174.63,3.31]
[1754627160560,3.24503763,174.66,174.63,3.31]
[1754627160761,6.25503763,174.66,174.63,3.31]
[1754627161056,6.25503763,174.66,174.58,140.50503763]
[1754627161057,8.96873763,174.68,174.64,5.7247]
[1754627161261,11.97873763,174.68,174.65,3.31]
[1754627161460,3.01,174.67,174.65,3.31]
[1754627164568,8.7339,174.67,174.65,3.31]
[1754627164966,5.7239,174.67,174.65,3.31]
[1754627165169,3.28,174.66,174.65,3.31]
[1754627165968,5.7239,174.67,174.65,3.31]
[1754627166368,9.0039,174.67,174.65,3.31]
[1754627166571,9.0039,174.67,174.66,3.17]
[1754627166766,11.08133183,174.67,174.66,3.17]
[1754627166973,3.28,174.66,174.65,3.17]
[1754627167173,5.35743183,174.66,174.65,3.17]
[1754627168171,2.07743183,174.66,174.65,3.17]
[1754627170575,9.0037,174.68,174.65,8.8945]
[1754627170778,2.07743183,174.67,174.66,3.17]
[1754627171675,2.07743183,174.67,174.66,8.8942]
[1754627172076,3.28,174.69,174.66,8.8942]
[1754627172277,2.07743183,174.67,174.66,5.7242]
[1754627172776,2.07743183,174.67,174.66,8.8942]
[1754627173574,3.28,174.74,174.66,8.89]
[1754627173774,5.35743183,174.74,174.69,3.17]
[1754627174078,5.35743183,174.7,174.68,3.17]
[1754627174378,3.28,174.69,174.68,3.17]
[1754627174579,3.28,174.69,174.67,3.17]
[1754627174782,6.5253787,174.69,174.67,3.17]
[1754627175381,5.7236,174.68,174.67,3.17]
[1754627175574,9.0036,174.68,174.67,3.17]
[1754627177678,9.0042,174.67,174.66,3.17]
[1754627177983,9.0042,174.67,174.65,3.17]
[1754627178181,3.28,174.66,174.65,3.17]
[1754627180885,5.7242,174.67,174.65,3.17]
[1754627182086,9.0037,174.68,174.65,3.17]
[1754627182786,3.28,174.68,174.65,3.17]
[1754627182991,3.2453787,174.69,174.65,3.17]
[1754627182992,9.004,174.67,174.65,3.17]
[1754627183192,3.28,174.67,174.65,3.17]
[1754627183486,3.2453787,174.69,174.65,3.17]
[1754627183690,9.0042,174.66,174.65,3.17]
[1754627183890,3.28,174.66,174.65,3.17]
[1754627184087,3.2453787,174.69,174.65,3.17]
[1754627184288,3.28,174.68,174.66,3.17]
[1754627184488,3.28,174.67,174.66,3.17]
[1754627185192,9.004,174.67,174.66,3.17]
[1754627189395,5.724,174.67,174.66,3.17]
[1754627189694,9.004,174.67,174.66,3.17]
[1754627191993,4.07622123,174.78,174.68,3.29]
[1754627192198,3.2453787,174.75,174.68,3.29]